{"text_format":"1","workbook":"xlsx","n_sheets":3,"sheets":["Vejledning","UU vejledere","satser"],"not_rendered":{"charts":0,"images":0,"macros":1,"external_links":0,"defined_names":0,"comments":2,"pivot_tables":0},"unopened":[],"bounds":{"document_bytes":16777216,"sheet_cells":100000,"rows_first":2000,"rows_last":500,"rows_between":2000,"halvings":0,"cell_chars":16384,"cell_head_chars":4096},"cells_cut":0,"cells_raw":0,"read":"whole","date_system":"1900"}

{"sheet":"Vejledning","index":0,"n_rows":23,"n_cols":1,"rows_kept":23,"cut":false,"hidden":false,"merged":[]}
["Vejledning til regneark, lønberegning."]
[]
["Regnearket anvendes til kontrol af lønsedler."]
["Regnearket kan anvendes af UU vejledere  ansat ved Ungdommens Uddannelsesvejlednng i Odense."]
[]
[]
["Brug arket \"UU vejledere\", der kan kun indtastes i de gule felter!"]
[]
["Beskæftigelsesgrad indtastes med ugentligt timetal (fremgår af lønsedlen)"]
["Grundløn og andre tillæg gældende for alle fremkommer automatisk."]
["Tillæg for anciennitet ved at taste 1 ved relevant anciennitet (fremgår af lønsedlen)"]
["Funktions- og kvalifikationsløn indtastes med 1 ud for funktionen/kvalifikationen"]
[]
["Nogle vejledere har personlige tillæg. Disse indtastes med det månedlige beløb, der fremgår af lønsedlen."]
["Der kan evt. indtastes navn på disse tillæg."]
[]
["Månedslønnen fremkommer automatisk og er sammenlignelig med lønsedlen"]
[]
["Bemærk: Der kan fremkomme øreafvigelser p.g.a. afrunding."]
[]
["Kørselsgodtgørelse o.l. udbetales konkret og fremgår ikke af lønberegneren"]
[]
["Kommentarer eller rettelser er velkomne, kontakt Mads Alnor, Odense Lærerforening."]

{"sheet":"UU vejledere","index":1,"n_rows":35,"n_cols":3,"rows_kept":35,"cut":false,"hidden":false,"merged":[[1,0,2,2],[0,0,0,1]]}
["Lønberegning niveau",null,{"$f":"satser!F1","v":"01.04.2026"}]
["UU Vejledere"]
[]
[]
["Navn: "]
["Måned:"]
[]
["Beskæftigelsesgrad (indsæt ugentligt timetal)",37]
[null,null,"Månedsløn"]
["Grundløn trin 31",31,{"$f":"satser!B11*B8/37","v":33260.083333333336}]
["Grundlønstillæg - lærer",null,{"$f":"IF(B13=1,\"\",satser!I3*B8/37)","v":413.34449999999998}]
["Anciennitetstillæg (trin 31-35)",null,{"$f":"IF((B12+B13)>1,\"Fejl: kun et tillæg\",IF(B12=1,satser!D15*B8/37,\"\"))","v":""}]
["Anciennitetstillæg (trin 31-40)",null,{"$f":"IF((B12+B13)>1,\"Fejl: kun et tillæg\",IF(B13=1,satser!D20*B8/37,\"\"))","v":""}]
["Anciennitetstillæg - lærer",null,{"$f":"IF(AND(B14=1,B13=1),satser!I4*B8/37,\"\")","v":""}]
["Almen",null,{"$f":"satser!I8*(B8/37)","v":661.35119999999995}]
[]
["Funktions- og kvalifikationsløn: Tast 1 i det gule felt, hvis omfattet:"]
["Vejledertillæg",null,{"$f":"satser!I12*B8/37","v":1088.47}]
["Vejleder § 3, stk. 3",null,{"$f":"satser!I13*B8/37","v":1446.71}]
["Vejleder § 3, stk. 4",null,{"$f":"satser!I14*B8/37","v":1033.3599999999999}]
["TR uden forhandlingskompetence",null,{"$f":"(IF(B21>1,\"Fejl:kun et tillæg\",IF(B21>0,B21*satser!I15,\"\")))","v":""}]
["TR uden forhandlingskompetence > 35",null,{"$f":"(IF(B22>1,\"Fejl:kun et tillæg\",IF(B22>0,B22*satser!I16,\"\")))","v":""}]
["AMR funktion",null,{"$f":"(IF(B23>1,\"Fejl:kun et tillæg\",IF(B23>0,B23*satser!I17,\"\")))","v":""}]
[]
["Vejlederuddannelse",null,{"$f":"(IF((B25+B26)>1,\"Fejl:kun et tillæg\",IF(B25>0,B25*satser!I20*B8/37,\"\")))","v":""}]
["Anden diplom/master",null,{"$f":"(IF((B25+B26)>1,\"Fejl:kun et tillæg\",IF(B26>0,B26*satser!I21*B8/37,\"\")))","v":""}]
[]
["Andre tillæg, herunder personlige tillæg. Indtast beløb fra lønseddel"]
[]
[]
[]
[]
[]
[]
["Fast løn i alt",null,{"$f":"SUM(C10:C34)","v":37903.319033333333}]

{"sheet":"satser","index":2,"n_rows":28,"n_cols":10,"rows_kept":28,"cut":false,"hidden":false,"merged":[[0,0,0,4],[18,10,18,11],[2,2,2,3],[5,2,5,3]]}
["Satser pr. ",null,null,null,null,"01.04.2026"]
[null,null,null,null,null,null,"Grundbeløb",null,"Månedligt beløb pr.",{"$f":"F1","v":"01.04.2026"}]
[null,null,null,null,null,"Grundlønstillæg - lærer",3000,null,{"$f":"G3*C28/12","v":413.34449999999998}]
[null,null,null,null,null,"Anciennitetstillæg - lærer",10000,null,{"$f":"G4*C28/12","v":1377.8149999999998}]
[null,null,null,null,null,"Grundlønstillæg - skolekonsulent",null,12000,{"$f":"H5*C28/12","v":1653.3779999999999}]
["Løntrin ","Pr. måned","Anciennitetstillæg",null,null,"Stillingstillæg - lærer",null,13000,{"$f":"H6*C28/12","v":1791.1595}]
[null,null,null,null,null,"Pension - stillingstilæg lærer",null,2202,{"$f":"H7*C28/12","v":303.39486299999999},"Beløbet er 17,3% af 13.000 fratrukket særlig ferie"]
[null,null,null,null,null,"Almentillæg",4800,null,{"$f":"(G8*C28)/12","v":661.35119999999995}]
[]
[null,null,null,null,null,null,"Grundbeløb",null,"Månedligt beløb pr.",{"$f":"F1","v":"01.04.2026"}]
[31,33260.083333333336,null,null,null,"Funktions- og kvalifikationsløn: ","Vejledere",null,"Vejledere"]
[32,33796,null,null,null,"Centralt vejledertillæg",7900,null,{"$f":"ROUND(G12*$C$28/12,2)","v":1088.47}]
[33,34342.916666666664,null,null,null,"Vejleder § 3, stk. 3",10500,null,{"$f":"ROUND(G13*$C$28/12,2)","v":1446.71}]
[34,34901.583333333336,null,null,null,"Vejleder § 3, stk. 4",7500,null,1033.3599999999999]
[35,35471,"31 - 35",{"$f":"B15-B11","v":2210.9166666666642},null,"TR uden forhandlingskompetence",5350,null,737.13]
[36,36052.583333333336,null,null,null,"TR uden forhandlingskompetence > 35",6000,null,826.69]
[37,36645.583333333336,null,null,null,"AMR funktion",5350,null,{"$f":"ROUND(G17*$C$28/12,2)","v":737.13}]
[38,37278.166666666664]
[39,37908.25]
[40,38551.416666666664,"31 - 40",{"$f":"B20-B11","v":5291.3333333333285},null,"Vejlederuddannelse",10500,null,{"$f":"ROUND(G20*$C$28/12,2)","v":1446.71}]
[null,null,null,null,null,"Anden diplom/master",7500,null,{"$f":"ROUND(G21*$C$28/12,2)","v":1033.3599999999999}]
[]
[]
[]
[]
[]
[]
["Reguleringsfaktor:",null,1.653378]